[Event "*** SCC Grand Prix: Titled Tuesday Blitz"]
[Site "Chess.com"]
[Date "2020.06.23"]
[Round "10"]
[White "KingChess345"]
[Black "RusPakhom"]
[Result "1-0"]
[WhiteElo "2185"]
[BlackElo "2302"]
[TimeControl "180+1"]
[EndTime "11:55:18 PDT"]
[Termination "KingChess345 won by resignation"]

1. d4 {[%clk 0:03:00.9]} 1... d6 {[%clk 0:02:59.3]} 2. Nf3 {[%clk 0:03:01.8]}
2... g6 {[%clk 0:02:59.3]} 3. g3 {[%clk 0:03:02.7]} 3... Bg7 {[%clk 0:02:59.8]}
4. Bg2 {[%clk 0:03:03.6]} 4... Nd7 {[%clk 0:03:00.4]} 5. O-O {[%clk 0:03:04.5]}
5... e5 {[%clk 0:03:00]} 6. c4 {[%clk 0:03:05.4]} 6... e4 {[%clk 0:02:57.8]} 7.
Ng5 {[%clk 0:03:03.8]} 7... Ngf6 {[%clk 0:02:46.1]} 8. Nxe4 {[%clk 0:03:02.2]}
8... Nxe4 {[%clk 0:02:45]} 9. Bxe4 {[%clk 0:03:01.8]} 9... O-O {[%clk
0:02:45.5]} 10. Nc3 {[%clk 0:03:01.7]} 10... Re8 {[%clk 0:02:45.4]} 11. Bg2
{[%clk 0:03:01.4]} 11... Nf6 {[%clk 0:02:44.5]} 12. b3 {[%clk 0:02:58.8]} 12...
c6 {[%clk 0:02:41.1]} 13. e4 {[%clk 0:02:53.2]} 13... h5 {[%clk 0:02:27.8]} 14.
Bg5 {[%clk 0:02:49.2]} 14... Qc7 {[%clk 0:02:25.1]} 15. Re1 {[%clk 0:02:46.4]}
15... Nd7 {[%clk 0:02:12.3]} 16. Qd2 {[%clk 0:02:44.7]} 16... Nf8 {[%clk
0:02:08.7]} 17. d5 {[%clk 0:02:27.5]} 17... Nd7 {[%clk 0:02:05.2]} 18. Rad1
{[%clk 0:02:26]} 18... a5 {[%clk 0:01:58.4]} 19. Be3 {[%clk 0:02:22.6]} 19... c5
{[%clk 0:01:55.6]} 20. Nb5 {[%clk 0:02:16.9]} 20... Qb6 {[%clk 0:01:54.5]} 21.
a4 {[%clk 0:02:13.1]} 21... Ne5 {[%clk 0:01:53.4]} 22. h3 {[%clk 0:02:10.8]}
22... Bd7 {[%clk 0:01:40.9]} 23. f4 {[%clk 0:01:55.1]} 23... Bxb5 {[%clk
0:01:40.9]} 24. cxb5 {[%clk 0:01:54.5]} 24... Nd7 {[%clk 0:01:38.6]} 25. Qc2
{[%clk 0:01:50.7]} 25... Qc7 {[%clk 0:01:36.4]} 26. Bd2 {[%clk 0:01:45.8]} 26...
h4 {[%clk 0:01:11.9]} 27. g4 {[%clk 0:01:43.7]} 27... Bd4+ {[%clk 0:01:11.8]}
28. Be3 {[%clk 0:01:40.7]} 28... Bg7 {[%clk 0:01:11.5]} 29. Bc1 {[%clk
0:01:40.4]} 29... Bd4+ {[%clk 0:01:09.6]} 30. Rxd4 {[%clk 0:01:39]} 30... Nf6
{[%clk 0:01:03.9]} 31. Rdd1 {[%clk 0:01:36.1]} 31... Rac8 {[%clk 0:01:01]} 32.
Bb2 {[%clk 0:01:35.4]} 32... Nd7 {[%clk 0:00:53.1]} 33. Qc3 {[%clk 0:01:34.6]}
33... f6 {[%clk 0:00:53.5]} 34. g5 {[%clk 0:01:33.1]} 34... Qd8 {[%clk 0:00:52]}
35. gxf6 {[%clk 0:01:32.3]} 35... Kf7 {[%clk 0:00:52.5]} 36. e5 {[%clk
0:01:32.1]} 1-0

[Event "*** SCC Grand Prix: Titled Tuesday Blitz"]
[Site "Chess.com"]
[Date "2020.06.23"]
[Round "10"]
[White "2008king"]
[Black "Grandmaster2B"]
[Result "1-0"]
[WhiteElo "2257"]
[BlackElo "2400"]
[TimeControl "180+1"]
[EndTime "11:55:20 PDT"]
[Termination "2008king won by resignation"]

1. e4 {[%clk 0:03:00.9]} 1... c5 {[%clk 0:02:58.5]} 2. Nf3 {[%clk 0:03:00.9]}
2... d6 {[%clk 0:02:59.2]} 3. d4 {[%clk 0:03:00.7]} 3... cxd4 {[%clk 0:03:00.1]}
4. Qxd4 {[%clk 0:03:00.8]} 4... Nf6 {[%clk 0:03:00.8]} 5. c4 {[%clk 0:02:53.7]}
5... Nc6 {[%clk 0:02:59.6]} 6. Qe3 {[%clk 0:02:53.7]} 6... Bg4 {[%clk
0:02:56.3]} 7. Nc3 {[%clk 0:02:45]} 7... e6 {[%clk 0:02:47.9]} 8. Nd4 {[%clk
0:02:35.7]} 8... Be7 {[%clk 0:02:45.7]} 9. Be2 {[%clk 0:02:24.3]} 9... O-O
{[%clk 0:02:42.9]} 10. O-O {[%clk 0:02:18.8]} 10... Rc8 {[%clk 0:02:33.5]} 11.
f3 {[%clk 0:02:06.1]} 11... Bh5 {[%clk 0:02:30.7]} 12. Kh1 {[%clk 0:02:06.4]}
12... a6 {[%clk 0:02:30.2]} 13. Rd1 {[%clk 0:02:02.5]} 13... Qc7 {[%clk
0:02:28]} 14. b3 {[%clk 0:01:59.5]} 14... b5 {[%clk 0:02:21.2]} 15. Bb2 {[%clk
0:01:49.4]} 15... bxc4 {[%clk 0:01:52.7]} 16. Bxc4 {[%clk 0:01:50.3]} 16... Ne5
{[%clk 0:01:32.6]} 17. Be2 {[%clk 0:01:45.8]} 17... Kh8 {[%clk 0:01:20.3]} 18.
Rac1 {[%clk 0:01:42.3]} 18... Qa7 {[%clk 0:01:16.6]} 19. Nf5 {[%clk 0:01:37]}
19... Qxe3 {[%clk 0:01:15.2]} 20. Nxe3 {[%clk 0:01:37.9]} 20... Nfd7 {[%clk
0:01:08.4]} 21. Na4 {[%clk 0:01:35.4]} 21... Nc5 {[%clk 0:00:58.4]} 22. Nxc5
{[%clk 0:01:34.3]} 22... dxc5 {[%clk 0:00:59.3]} 23. Bxe5 {[%clk 0:01:32.5]}
23... Bg5 {[%clk 0:00:48.7]} 24. Rc3 {[%clk 0:01:25.6]} 24... Rfd8 {[%clk
0:00:41.9]} 25. Bg3 {[%clk 0:01:13.9]} 25... Bf6 {[%clk 0:00:33.7]} 26. Rcd3
{[%clk 0:01:11.8]} 1-0

[Event "*** SCC Grand Prix: Titled Tuesday Blitz"]
[Site "Chess.com"]
[Date "2020.06.23"]
[Round "10"]
[White "Beca95"]
[Black "mmmflatbread"]
[Result "1-0"]
[WhiteElo "2897"]
[BlackElo "2801"]
[TimeControl "180+1"]
[EndTime "11:55:21 PDT"]
[Termination "Beca95 won by resignation"]

1. e4 {[%clk 0:03:00.9]} 1... c5 {[%clk 0:02:58.8]} 2. Nc3 {[%clk 0:02:54.9]}
2... e6 {[%clk 0:02:56.1]} 3. f4 {[%clk 0:02:52.9]} 3... d5 {[%clk 0:02:55.4]}
4. Bb5+ {[%clk 0:02:52.9]} 4... Bd7 {[%clk 0:02:53.8]} 5. Bxd7+ {[%clk
0:02:52.5]} 5... Qxd7 {[%clk 0:02:54.7]} 6. d3 {[%clk 0:02:52.5]} 6... Nc6
{[%clk 0:02:50.8]} 7. Nf3 {[%clk 0:02:52.1]} 7... Nf6 {[%clk 0:02:47.3]} 8. e5
{[%clk 0:02:45.1]} 8... Ng4 {[%clk 0:02:43.8]} 9. h3 {[%clk 0:02:42.9]} 9... Nh6
{[%clk 0:02:43.8]} 10. g4 {[%clk 0:02:43.2]} 10... f6 {[%clk 0:02:42]} 11. Qe2
{[%clk 0:02:42.2]} 11... Nf7 {[%clk 0:02:29.2]} 12. Bd2 {[%clk 0:02:32.6]} 12...
fxe5 {[%clk 0:02:28.1]} 13. fxe5 {[%clk 0:02:27.2]} 13... Be7 {[%clk 0:02:20]}
14. O-O-O {[%clk 0:02:19.3]} 14... a6 {[%clk 0:02:12.4]} 15. Qh2 {[%clk
0:02:05.8]} 15... b5 {[%clk 0:02:09.8]} 16. Kb1 {[%clk 0:02:04.8]} 16... O-O
{[%clk 0:01:49.2]} 17. Ne2 {[%clk 0:02:02.8]} 17... b4 {[%clk 0:01:41.5]} 18. g5
{[%clk 0:02:01.4]} 18... Nh8 {[%clk 0:01:33.9]} 19. Rhf1 {[%clk 0:01:57.7]}
19... a5 {[%clk 0:01:12.4]} 20. h4 {[%clk 0:01:51.1]} 20... a4 {[%clk
0:01:11.3]} 21. h5 {[%clk 0:01:49.2]} 21... b3 {[%clk 0:01:09.7]} 22. g6 {[%clk
0:01:46.7]} 22... bxc2+ {[%clk 0:01:06.5]} 23. Kxc2 {[%clk 0:01:46.6]} 23... c4
{[%clk 0:00:51.3]} 24. dxc4 {[%clk 0:01:46]} 24... Na5 {[%clk 0:00:50.4]} 25.
cxd5 {[%clk 0:01:41.7]} 25... Qxd5 {[%clk 0:00:44.7]} 26. Nc3 {[%clk 0:01:41.3]}
26... Rac8 {[%clk 0:00:40.1]} 27. Qe2 {[%clk 0:01:40.4]} 27... Qxa2 {[%clk
0:00:34.7]} 28. Nd4 {[%clk 0:01:35.8]} 28... Nc4 {[%clk 0:00:20.5]} 29. Nxa2
{[%clk 0:01:31.4]} 1-0

[Event "*** SCC Grand Prix: Titled Tuesday Blitz"]
[Site "Chess.com"]
[Date "2020.06.23"]
[Round "10"]
[White "levallem"]
[Black "Sharpchess22"]
[Result "0-1"]
[WhiteElo "2126"]
[BlackElo "2726"]
[TimeControl "180+1"]
[EndTime "11:55:22 PDT"]
[Termination "Sharpchess22 won by resignation"]

1. d4 {[%clk 0:02:58.8]} 1... Nf6 {[%clk 0:02:59.2]} 2. c4 {[%clk 0:02:58.3]}
2... g6 {[%clk 0:02:59.3]} 3. Nc3 {[%clk 0:02:58]} 3... Bg7 {[%clk 0:03:00]} 4.
Nf3 {[%clk 0:02:57.8]} 4... d6 {[%clk 0:03:00.4]} 5. e4 {[%clk 0:02:56.3]} 5...
O-O {[%clk 0:03:00.7]} 6. h3 {[%clk 0:02:55.4]} 6... e5 {[%clk 0:02:59.4]} 7.
dxe5 {[%clk 0:02:53.5]} 7... dxe5 {[%clk 0:02:58.5]} 8. Qxd8 {[%clk 0:02:54]}
8... Rxd8 {[%clk 0:02:57.8]} 9. Bg5 {[%clk 0:02:53.9]} 9... Re8 {[%clk
0:02:54.8]} 10. O-O-O {[%clk 0:02:47.1]} 10... c6 {[%clk 0:02:44.3]} 11. Bd3
{[%clk 0:02:34.6]} 11... Na6 {[%clk 0:02:43.1]} 12. Be3 {[%clk 0:02:25.3]} 12...
Bf8 {[%clk 0:02:37.2]} 13. a3 {[%clk 0:02:12.3]} 13... Nc5 {[%clk 0:02:34.6]}
14. Bc2 {[%clk 0:02:03.1]} 14... a5 {[%clk 0:02:34.6]} 15. Nd2 {[%clk
0:01:54.3]} 15... Be6 {[%clk 0:02:31.3]} 16. f3 {[%clk 0:01:53.4]} 16... Nh5
{[%clk 0:02:29.2]} 17. g4 {[%clk 0:01:41.8]} 17... Nf4 {[%clk 0:02:27.2]} 18.
Bxf4 {[%clk 0:01:31]} 18... exf4 {[%clk 0:02:28.1]} 19. Ne2 {[%clk 0:01:30.5]}
19... Bd6 {[%clk 0:02:18.6]} 20. Nb3 {[%clk 0:01:24.7]} 20... Nxb3+ {[%clk
0:02:17.2]} 21. Bxb3 {[%clk 0:01:25.6]} 21... Bc5 {[%clk 0:02:17.3]} 22. Nd4
{[%clk 0:01:15.9]} 22... Bc8 {[%clk 0:02:16]} 23. Ne2 {[%clk 0:01:11.2]} 23...
a4 {[%clk 0:02:10.9]} 24. Bc2 {[%clk 0:01:09.5]} 24... Be6 {[%clk 0:02:11.1]}
25. Bd3 {[%clk 0:01:06.6]} 25... g5 {[%clk 0:02:07]} 26. h4 {[%clk 0:01:05.1]}
26... h6 {[%clk 0:02:06.8]} 27. hxg5 {[%clk 0:01:05.1]} 27... hxg5 {[%clk
0:02:06.8]} 28. Rh5 {[%clk 0:01:04.6]} 28... f6 {[%clk 0:02:06.8]} 29. Rdh1
{[%clk 0:01:03.7]} 29... Kf8 {[%clk 0:02:04.7]} 30. Rh7 {[%clk 0:00:53.5]} 30...
Bf7 {[%clk 0:02:04.2]} 31. R1h6 {[%clk 0:00:49]} 31... Ke7 {[%clk 0:01:56.8]}
32. Rg7 {[%clk 0:00:45.2]} 32... Rg8 {[%clk 0:01:56.2]} 33. Rxg8 {[%clk
0:00:43.3]} 33... Rxg8 {[%clk 0:01:57.1]} 34. Kc2 {[%clk 0:00:43.4]} 34... Rd8
{[%clk 0:01:53.2]} 35. Kc3 {[%clk 0:00:42.6]} 35... Bb6 {[%clk 0:01:44.4]} 36.
Rh1 {[%clk 0:00:41.7]} 36... Ba5+ {[%clk 0:01:44.4]} 37. Kc2 {[%clk 0:00:41.8]}
37... b5 {[%clk 0:01:44.5]} 38. cxb5 {[%clk 0:00:41.3]} 38... Bb3+ {[%clk
0:01:43.4]} 39. Kc1 {[%clk 0:00:38.8]} 39... Rxd3 {[%clk 0:01:44.3]} 0-1

[Event "*** SCC Grand Prix: Titled Tuesday Blitz"]
[Site "Chess.com"]
[Date "2020.06.23"]
[Round "10"]
[White "GukeshDommaraju"]
[Black "pooh2012"]
[Result "1-0"]
[WhiteElo "2707"]
[BlackElo "2507"]
[TimeControl "180+1"]
[EndTime "11:55:28 PDT"]
[Termination "GukeshDommaraju won by checkmate"]

1. c4 {[%clk 0:03:00.9]} 1... d6 {[%clk 0:02:58.4]} 2. d4 {[%clk 0:03:00.4]}
2... e5 {[%clk 0:02:58]} 3. e3 {[%clk 0:02:57.7]} 3... Nc6 {[%clk 0:02:55.1]} 4.
Nc3 {[%clk 0:02:57.7]} 4... f5 {[%clk 0:02:54.2]} 5. Nf3 {[%clk 0:02:56.9]} 5...
Be7 {[%clk 0:02:51.4]} 6. d5 {[%clk 0:02:55.7]} 6... Nb8 {[%clk 0:02:50.6]} 7.
e4 {[%clk 0:02:55.8]} 7... f4 {[%clk 0:02:44.1]} 8. g3 {[%clk 0:02:52.5]} 8...
fxg3 {[%clk 0:02:38.5]} 9. hxg3 {[%clk 0:02:52]} 9... Nf6 {[%clk 0:02:39.1]} 10.
Bh3 {[%clk 0:02:50.1]} 10... Bxh3 {[%clk 0:02:31.4]} 11. Rxh3 {[%clk 0:02:51]}
11... Qd7 {[%clk 0:02:16.6]} 12. Ng5 {[%clk 0:02:49.1]} 12... Na6 {[%clk
0:02:16.4]} 13. Ne6 {[%clk 0:02:46.4]} 13... g6 {[%clk 0:01:53.3]} 14. Be3
{[%clk 0:02:39.1]} 14... c6 {[%clk 0:01:44.7]} 15. f4 {[%clk 0:02:31.2]} 15...
exf4 {[%clk 0:01:20.4]} 16. gxf4 {[%clk 0:02:28.4]} 16... Nc7 {[%clk 0:01:15.7]}
17. f5 {[%clk 0:02:23.4]} 17... Nxe6 {[%clk 0:01:02.4]} 18. dxe6 {[%clk
0:02:21.6]} 18... Qc7 {[%clk 0:01:02.6]} 19. Qd4 {[%clk 0:02:12.7]} 19... gxf5
{[%clk 0:00:47.2]} 20. exf5 {[%clk 0:02:10.1]} 20... b6 {[%clk 0:00:46.6]} 21.
Bg5 {[%clk 0:02:03.3]} 21... Rf8 {[%clk 0:00:46]} 22. Rh6 {[%clk 0:02:02.7]}
22... d5 {[%clk 0:00:24.6]} 23. O-O-O {[%clk 0:01:52.6]} 23... Qg3 {[%clk
0:00:16.3]} 24. Bf4 {[%clk 0:01:35.6]} 24... Qg4 {[%clk 0:00:06.8]} 25. cxd5
{[%clk 0:01:33.7]} 25... O-O-O {[%clk 0:00:07]} 26. Qc4 {[%clk 0:01:32.3]} 26...
c5 {[%clk 0:00:06.1]} 27. Qa6# {[%clk 0:01:32.1]} 1-0

[Event "*** SCC Grand Prix: Titled Tuesday Blitz"]
[Site "Chess.com"]
[Date "2020.06.23"]
[Round "10"]
[White "NiranjanNavalgund"]
[Black "HunterBRR"]
[Result "1-0"]
[WhiteElo "2433"]
[BlackElo "2078"]
[TimeControl "180+1"]
[EndTime "11:55:34 PDT"]
[Termination "NiranjanNavalgund won on time"]

1. e4 {[%clk 0:03:00.9]} 1... c5 {[%clk 0:02:59.5]} 2. d4 {[%clk 0:03:00.2]}
2... cxd4 {[%clk 0:02:58.9]} 3. c3 {[%clk 0:03:00.5]} 3... Nf6 {[%clk
0:02:59.1]} 4. e5 {[%clk 0:02:59.5]} 4... Nd5 {[%clk 0:02:59]} 5. Nf3 {[%clk
0:02:58.6]} 5... Nc6 {[%clk 0:02:58.2]} 6. Bc4 {[%clk 0:02:58.4]} 6... Nb6
{[%clk 0:02:57.7]} 7. Bb3 {[%clk 0:02:57.7]} 7... d5 {[%clk 0:02:57.5]} 8. cxd4
{[%clk 0:02:56.5]} 8... Bg4 {[%clk 0:02:55]} 9. Be3 {[%clk 0:02:56.1]} 9... e6
{[%clk 0:02:54.5]} 10. h3 {[%clk 0:02:55.4]} 10... Bxf3 {[%clk 0:02:53.5]} 11.
Qxf3 {[%clk 0:02:54.9]} 11... Be7 {[%clk 0:02:53.5]} 12. Qg4 {[%clk 0:02:54]}
12... Kf8 {[%clk 0:02:42.6]} 13. h4 {[%clk 0:02:53.1]} 13... Rc8 {[%clk
0:02:30.8]} 14. h5 {[%clk 0:02:48.8]} 14... h6 {[%clk 0:02:31]} 15. Nc3 {[%clk
0:02:47.4]} 15... Na5 {[%clk 0:02:25.8]} 16. Rh3 {[%clk 0:02:38.6]} 16... Nac4
{[%clk 0:02:18.8]} 17. Rg3 {[%clk 0:02:37.1]} 17... Bg5 {[%clk 0:01:42.2]} 18.
Bxc4 {[%clk 0:02:28.2]} 18... Nxc4 {[%clk 0:01:31.9]} 19. Bc1 {[%clk 0:02:25.4]}
19... Rg8 {[%clk 0:01:22.5]} 20. Kf1 {[%clk 0:02:23.4]} 20... b5 {[%clk
0:00:48.9]} 21. Bxg5 {[%clk 0:02:09.4]} 21... hxg5 {[%clk 0:00:40.8]} 22. Nxb5
{[%clk 0:02:08.8]} 22... Qb6 {[%clk 0:00:14.6]} 23. a4 {[%clk 0:02:03.8]} 23...
a6 {[%clk 0:00:12.5]} 24. Qxg5 {[%clk 0:01:59.9]} 24... axb5 {[%clk 0:00:10.9]}
25. h6 {[%clk 0:01:59.8]} 25... g6 {[%clk 0:00:10]} 26. h7 {[%clk 0:01:58.7]}
26... Rh8 {[%clk 0:00:10]} 27. Rh3 {[%clk 0:01:56.8]} 27... Nd2+ {[%clk
0:00:06.6]} 28. Qxd2 {[%clk 0:01:54.4]} 28... bxa4 {[%clk 0:00:05.2]} 29. Qg5
{[%clk 0:01:50.6]} 29... Qxb2 {[%clk 0:00:03.2]} 30. Re1 {[%clk 0:01:49.3]}
30... Qb5+ {[%clk 0:00:02.2]} 31. Kg1 {[%clk 0:01:48.4]} 31... a3 {[%clk
0:00:02.3]} 32. Qf6 {[%clk 0:01:48.3]} 1-0

[Event "*** SCC Grand Prix: Titled Tuesday Blitz"]
[Site "Chess.com"]
[Date "2020.06.23"]
[Round "10"]
[White "CyberneticLion"]
[Black "crazy_but_lazy"]
[Result "0-1"]
[WhiteElo "2452"]
[BlackElo "2347"]
[TimeControl "180+1"]
[EndTime "11:55:39 PDT"]
[Termination "crazy_but_lazy won by resignation"]

1. e4 {[%clk 0:03:00.9]} 1... e6 {[%clk 0:02:58.9]} 2. d4 {[%clk 0:03:00.1]}
2... d5 {[%clk 0:02:59.8]} 3. exd5 {[%clk 0:03:01]} 3... exd5 {[%clk 0:02:58.7]}
4. c4 {[%clk 0:03:01.3]} 4... Nf6 {[%clk 0:02:57.6]} 5. Nc3 {[%clk 0:03:01.4]}
5... Be7 {[%clk 0:02:56.7]} 6. cxd5 {[%clk 0:03:00.6]} 6... Nxd5 {[%clk
0:02:56.6]} 7. Bc4 {[%clk 0:03:00.8]} 7... c6 {[%clk 0:02:55.2]} 8. Qb3 {[%clk
0:02:56.6]} 8... O-O {[%clk 0:02:49.9]} 9. Nxd5 {[%clk 0:02:54.9]} 9... cxd5
{[%clk 0:02:50.1]} 10. Bxd5 {[%clk 0:02:55.8]} 10... Nc6 {[%clk 0:02:48.1]} 11.
Bxc6 {[%clk 0:02:52.4]} 11... bxc6 {[%clk 0:02:48]} 12. Be3 {[%clk 0:02:49.1]}
12... Re8 {[%clk 0:02:43.2]} 13. Ne2 {[%clk 0:02:48.1]} 13... Ba6 {[%clk
0:02:43.1]} 14. Qc2 {[%clk 0:02:40.8]} 14... Bg5 {[%clk 0:02:38.1]} 15. O-O
{[%clk 0:02:34.3]} 15... Bxe3 {[%clk 0:02:34.7]} 16. fxe3 {[%clk 0:02:35.2]}
16... Rxe3 {[%clk 0:02:32.2]} 17. Rf2 {[%clk 0:02:31.7]} 17... Bxe2 {[%clk
0:02:18.8]} 18. Rxe2 {[%clk 0:02:31.3]} 18... Qxd4 {[%clk 0:02:17.3]} 19. Rxe3
{[%clk 0:02:22.3]} 19... Qxe3+ {[%clk 0:02:18.2]} 20. Kh1 {[%clk 0:02:23.1]}
20... Re8 {[%clk 0:02:01.9]} 21. h3 {[%clk 0:02:22.4]} 21... c5 {[%clk
0:01:58.9]} 22. Rc1 {[%clk 0:02:21.5]} 22... Re5 {[%clk 0:01:58.2]} 23. Rd1
{[%clk 0:02:19.1]} 23... g6 {[%clk 0:01:54.9]} 24. Qa4 {[%clk 0:02:16.3]} 24...
Qe2 {[%clk 0:01:38.8]} 25. Qb3 {[%clk 0:01:57.1]} 25... Kg7 {[%clk 0:01:25.5]}
26. Rc1 {[%clk 0:01:51]} 26... h5 {[%clk 0:01:11.9]} 27. Qc3 {[%clk 0:01:44.8]}
27... Kh7 {[%clk 0:01:09.5]} 28. Rc2 {[%clk 0:01:30.7]} 28... Qf1+ {[%clk
0:01:04.9]} 29. Kh2 {[%clk 0:01:30.3]} 29... Re1 {[%clk 0:01:03.2]} 30. Qf3
{[%clk 0:01:12.5]} 30... Qg1+ {[%clk 0:01:00]} 31. Kg3 {[%clk 0:01:10.6]} 31...
Re3 {[%clk 0:01:00.9]} 32. Rf2 {[%clk 0:01:05.5]} 32... Rxf3+ {[%clk 0:00:59.9]}
33. Kxf3 {[%clk 0:01:06.4]} 33... Qb1 {[%clk 0:00:56.9]} 34. a3 {[%clk
0:01:06.1]} 34... Qd3+ {[%clk 0:00:57]} 35. Kf4 {[%clk 0:01:05.7]} 35... f6
{[%clk 0:00:56.1]} 36. g3 {[%clk 0:00:57.4]} 0-1

[Event "*** SCC Grand Prix: Titled Tuesday Blitz"]
[Site "Chess.com"]
[Date "2020.06.23"]
[Round "10"]
[White "GMTalks_Youtube"]
[Black "louis198"]
[Result "1-0"]
[WhiteElo "2679"]
[BlackElo "2499"]
[TimeControl "180+1"]
[EndTime "11:55:56 PDT"]
[Termination "GMTalks_Youtube won by resignation"]

1. e4 {[%clk 0:03:00.9]} 1... e6 {[%clk 0:03:00]} 2. d3 {[%clk 0:03:00.9]} 2...
d5 {[%clk 0:03:00.9]} 3. Nd2 {[%clk 0:03:00.5]} 3... Nf6 {[%clk 0:03:01.2]} 4.
Ngf3 {[%clk 0:03:00.7]} 4... a5 {[%clk 0:02:57.6]} 5. a4 {[%clk 0:02:58.2]} 5...
Bc5 {[%clk 0:02:57.5]} 6. e5 {[%clk 0:02:55.6]} 6... Nfd7 {[%clk 0:02:57.2]} 7.
c3 {[%clk 0:02:53]} 7... Ba7 {[%clk 0:02:56.4]} 8. d4 {[%clk 0:02:50.8]} 8... c5
{[%clk 0:02:56.5]} 9. Nb3 {[%clk 0:02:49.3]} 9... Nc6 {[%clk 0:02:55.9]} 10. Be2
{[%clk 0:02:44.3]} 10... O-O {[%clk 0:02:49.4]} 11. O-O {[%clk 0:02:42.8]} 11...
f6 {[%clk 0:02:45.8]} 12. exf6 {[%clk 0:02:42.2]} 12... Qxf6 {[%clk 0:02:44.9]}
13. Be3 {[%clk 0:02:41.3]} 13... cxd4 {[%clk 0:02:17.2]} 14. Nbxd4 {[%clk
0:02:34.4]} 14... Nxd4 {[%clk 0:02:02.3]} 15. cxd4 {[%clk 0:02:19.2]} 15... Nb6
{[%clk 0:01:51.5]} 16. Ne5 {[%clk 0:02:16.7]} 16... Bd7 {[%clk 0:01:47.1]} 17.
Bd3 {[%clk 0:02:11.1]} 17... Be8 {[%clk 0:01:35.3]} 18. b3 {[%clk 0:01:58.5]}
18... Bb8 {[%clk 0:01:28.1]} 19. Qg4 {[%clk 0:01:56.3]} 19... h6 {[%clk
0:01:09.1]} 20. Rae1 {[%clk 0:01:46.8]} 20... Bd6 {[%clk 0:01:07.7]} 21. f4
{[%clk 0:01:44.8]} 21... Bb4 {[%clk 0:01:06.7]} 22. Rc1 {[%clk 0:01:39.1]} 22...
Rc8 {[%clk 0:00:29.7]} 23. Rxc8 {[%clk 0:01:36.6]} 23... Nxc8 {[%clk 0:00:29.7]}
24. f5 {[%clk 0:01:37.1]} 24... exf5 {[%clk 0:00:20.5]} 25. Rxf5 {[%clk
0:01:34.7]} 25... Qd8 {[%clk 0:00:16.4]} 26. Bxh6 {[%clk 0:01:32.2]} 26... Qc7
{[%clk 0:00:11.5]} 27. Rxf8+ {[%clk 0:01:18.8]} 27... Bxf8 {[%clk 0:00:10.6]}
28. Qe6+ {[%clk 0:01:15.2]} 28... Bf7 {[%clk 0:00:10.1]} 29. Nxf7 {[%clk
0:01:13.5]} 29... Qxf7 {[%clk 0:00:10.3]} 30. Bh7+ {[%clk 0:01:12.7]} 1-0

[Event "*** SCC Grand Prix: Titled Tuesday Blitz"]
[Site "Chess.com"]
[Date "2020.06.23"]
[Round "10"]
[White "Mikhail_Golubev"]
[Black "KNCP_719"]
[Result "1-0"]
[WhiteElo "2588"]
[BlackElo "2465"]
[TimeControl "180+1"]
[EndTime "11:55:57 PDT"]
[Termination "Mikhail_Golubev won on time"]

1. e4 {[%clk 0:03:00.9]} 1... e5 {[%clk 0:02:59.7]} 2. Nf3 {[%clk 0:03:00.2]}
2... Nf6 {[%clk 0:03:00.2]} 3. Nc3 {[%clk 0:02:59.8]} 3... Bb4 {[%clk
0:02:58.8]} 4. Nxe5 {[%clk 0:02:58]} 4... O-O {[%clk 0:02:59.3]} 5. Nd3 {[%clk
0:02:57.7]} 5... Bxc3 {[%clk 0:02:59.8]} 6. dxc3 {[%clk 0:02:57.9]} 6... Nxe4
{[%clk 0:03:00.3]} 7. Be2 {[%clk 0:02:58.2]} 7... d5 {[%clk 0:02:58.3]} 8. O-O
{[%clk 0:02:57.3]} 8... Re8 {[%clk 0:02:54.9]} 9. Nf4 {[%clk 0:02:56]} 9... Nf6
{[%clk 0:02:55.3]} 10. c4 {[%clk 0:02:51.2]} 10... d4 {[%clk 0:02:54.7]} 11. Bf3
{[%clk 0:02:44.3]} 11... Nc6 {[%clk 0:02:40.1]} 12. Nd5 {[%clk 0:02:27.4]} 12...
Be6 {[%clk 0:02:30.7]} 13. Bg5 {[%clk 0:02:22.1]} 13... Bxd5 {[%clk 0:02:19.2]}
14. Bxd5 {[%clk 0:02:16.5]} 14... h6 {[%clk 0:02:09.3]} 15. Bh4 {[%clk
0:02:00.9]} 15... g5 {[%clk 0:01:58.6]} 16. Bxc6 {[%clk 0:01:59.7]} 16... bxc6
{[%clk 0:01:55.7]} 17. Bg3 {[%clk 0:01:59.6]} 17... Qd7 {[%clk 0:01:16.4]} 18.
Qd3 {[%clk 0:01:41.5]} 18... c5 {[%clk 0:00:53.8]} 19. Rae1 {[%clk 0:01:33.4]}
19... Kg7 {[%clk 0:00:45.1]} 20. Be5 {[%clk 0:01:31.5]} 20... Re6 {[%clk
0:00:13]} 21. f4 {[%clk 0:01:31.2]} 21... g4 {[%clk 0:00:10.7]} 22. f5 {[%clk
0:01:27.3]} 22... Re7 {[%clk 0:00:08.3]} 23. Qg3 {[%clk 0:01:26.2]} 23... Rxe5
{[%clk 0:00:03.9]} 24. Rxe5 {[%clk 0:01:24.4]} 24... Qd6 {[%clk 0:00:03]} 25.
Rfe1 {[%clk 0:01:22.2]} 25... Rd8 {[%clk 0:00:02.6]} 26. Re7 {[%clk 0:01:19.5]}
26... Qb6 {[%clk 0:00:02]} 27. Qxc7 {[%clk 0:01:17.6]} 27... Qxc7 {[%clk
0:00:01.6]} 28. Rxc7 {[%clk 0:01:17.6]} 1-0

[Event "*** SCC Grand Prix: Titled Tuesday Blitz"]
[Site "Chess.com"]
[Date "2020.06.23"]
[Round "10"]
[White "maciek_92"]
[Black "MatyChess1"]
[Result "1-0"]
[WhiteElo "2702"]
[BlackElo "2540"]
[TimeControl "180+1"]
[EndTime "11:56:03 PDT"]
[Termination "maciek_92 won by resignation"]

1. c4 {[%clk 0:02:55.6]} 1... e5 {[%clk 0:02:53.1]} 2. Nc3 {[%clk 0:02:54.8]}
2... Nc6 {[%clk 0:02:53]} 3. g3 {[%clk 0:02:55]} 3... Bc5 {[%clk 0:02:52.7]} 4.
Bg2 {[%clk 0:02:55.2]} 4... d6 {[%clk 0:02:53.3]} 5. e3 {[%clk 0:02:54.8]} 5...
a6 {[%clk 0:02:53.9]} 6. Nge2 {[%clk 0:02:54.7]} 6... Ba7 {[%clk 0:02:54.7]} 7.
a3 {[%clk 0:02:45.4]} 7... h5 {[%clk 0:02:54.6]} 8. b4 {[%clk 0:02:36.6]} 8...
h4 {[%clk 0:02:54.8]} 9. d3 {[%clk 0:02:34.7]} 9... Nf6 {[%clk 0:02:50.3]} 10.
Bb2 {[%clk 0:02:30.6]} 10... Be6 {[%clk 0:02:48.8]} 11. Nd5 {[%clk 0:02:18.9]}
11... Qd7 {[%clk 0:02:18.5]} 12. Nxf6+ {[%clk 0:02:12.4]} 12... gxf6 {[%clk
0:02:17.2]} 13. Nc3 {[%clk 0:02:12.6]} 13... f5 {[%clk 0:01:36.9]} 14. Nd5
{[%clk 0:02:05.4]} 14... Qd8 {[%clk 0:01:34]} 15. Qe2 {[%clk 0:02:02.7]} 15...
Nb8 {[%clk 0:01:17.4]} 16. Nf6+ {[%clk 0:01:32.2]} 16... Qxf6 {[%clk 0:01:03.4]}
17. Bxb7 {[%clk 0:01:32]} 17... c6 {[%clk 0:01:02.7]} 18. Bxa8 {[%clk
0:01:31.1]} 18... Kd7 {[%clk 0:00:55.6]} 19. d4 {[%clk 0:01:20.1]} 19... hxg3
{[%clk 0:00:52.3]} 20. fxg3 {[%clk 0:01:18.4]} 20... exd4 {[%clk 0:00:41.4]} 21.
O-O-O {[%clk 0:01:17.7]} 21... Kc7 {[%clk 0:00:26.3]} 22. exd4 {[%clk
0:01:09.7]} 22... d5 {[%clk 0:00:10.3]} 23. c5 {[%clk 0:01:03.5]} 23... Qg5+
{[%clk 0:00:05.8]} 24. Kb1 {[%clk 0:01:03.1]} 24... Qg4 {[%clk 0:00:06.3]} 25.
Qe5+ {[%clk 0:01:01.6]} 25... Kc8 {[%clk 0:00:05.2]} 26. Qxh8+ {[%clk
0:00:59.9]} 1-0